fUSD/lending_fUSD_20250208
["ID","MTS","AMOUNT","RATE_DAILY","PERIOD"]
[352336854,1739045448422,-677.48,0.00010681,2]
[352336855,1739045448435,-1278.27,0.00010681,2]
[352336856,1739045448447,-500.0,0.00010681,2]
[352336857,1739045448460,-1000.42,0.00010681,2]
[352336858,1739045448471,-500.0,0.00010681,2]
[352336859,1739045448484,-664.4,0.00010681,2]
[352336860,1739045448496,-175.70950361,0.00010681,2]
[352336861,1739045448508,-500.0,0.00010681,2]
[352336862,1739045448520,-571.81,0.00010681,2]
[352336863,1739045448532,-989.47,0.00010681,2]
[352336864,1739045448544,-1596.25,0.00010681,2]
[352336865,1739045448556,-553.0,0.00010681,2]
[352336866,1739045448568,-1310.5,0.00010681,2]
[352336867,1739045448580,-2871.76,0.00010681,2]
[352336868,1739045448591,-1160.42,0.00010681,2]
[352336869,1739045448604,-917.51,0.00010681,2]
[352336870,1739045448617,-899.03,0.00010681,2]
[352336872,1739045448628,-500.0,0.00010681,2]
[352336874,1739045448641,-773.62,0.00010681,2]
[352336876,1739045448653,-1347.0,0.00010681,2]
[352336879,1739045448666,-743.17,0.00010681,2]
[352336881,1739045448678,-881.83,0.00010681,2]
[352336883,1739045448690,-500.0,0.00010681,2]
[352336885,1739045448702,-1246.42,0.00010681,2]
[352336887,1739045448714,-1046.85,0.00010681,2]
[352336889,1739045448727,-500.0,0.00010681,2]
[352336891,1739045448739,-782.2,0.00010681,2]
[352336893,1739045448751,-1385.47,0.00010681,2]
[352336895,1739045448764,-500.0,0.00010681,2]
[352336898,1739045448775,-1328.22,0.00010681,2]
[352336900,1739045448789,-596.15,0.00010681,2]
[352336902,1739045448801,-1382.25,0.00010681,2]
[352336904,1739045448814,-1293.42,0.00010681,2]
[352336906,1739045448826,-626.97,0.00010681,2]
[352336908,1739045448839,-1264.98,0.00010681,2]
[352336911,1739045448855,-500.0,0.00010681,2]
[352336913,1739045448867,-1255.74,0.00010681,2]
[352336915,1739045448880,-1988.02,0.00010681,2]
[352336917,1739045448893,-667.16,0.00010681,2]
[352336919,1739045448905,-500.0,0.00010681,2]
[352336921,1739045448918,-500.0,0.00010681,2]
[352336923,1739045448931,-993.75,0.00010681,2]
[352336926,1739045448945,-995.03,0.00010681,2]
[352336928,1739045448958,-665.6,0.00010681,2]
[352336930,1739045448970,-625.25,0.00010681,2]
[352336932,1739045448983,-1130.35,0.00010681,2]
[352336934,1739045448995,-757.96,0.00010681,2]
[352336937,1739045449008,-1548.22,0.00010681,2]
[352336939,1739045449021,-1882.42,0.00010681,2]
[352336941,1739045449032,-2130.84,0.00010681,2]
[352336943,1739045449044,-867.7,0.00010681,2]
[352336945,1739045449055,-562.92,0.00010681,2]
[352336947,1739045449067,-893.62,0.00010681,2]
[352336949,1739045449080,-527.94,0.00010681,2]
[352336952,1739045449096,-635.75,0.00010681,2]
[352336954,1739045449109,-500.0,0.00010681,2]
[352336956,1739045449124,-500.0,0.00010681,2]
[352336958,1739045449136,-653.15,0.00010681,2]
[352336960,1739045449149,-695.11,0.00010681,2]
[352336962,1739045449163,-500.0,0.00010681,2]
[352336964,1739045449175,-567.61002759,0.00010681,2]
[352336966,1739045449187,-500.0,0.00010681,2]
[352336968,1739045449200,-627.42,0.00010681,2]
[352336970,1739045449212,-500.0,0.00010681,2]
[352336972,1739045449227,-902.58,0.00010681,2]
[352336975,1739045449240,-1121.08,0.00010681,2]
[352336976,1739045449252,-500.0,0.00010681,2]
[352336978,1739045449264,-500.0,0.00010681,2]
[352336981,1739045449279,-500.0,0.00010681,2]
[352336982,1739045449291,-500.0,0.00010681,2]
[352336985,1739045449304,-621.83,0.00010681,2]
[352336987,1739045449316,-808.74,0.00010681,2]
[352336989,1739045449328,-500.0,0.00010681,2]
[352336991,1739045449340,-500.0,0.00010682,2]
[352336993,1739045449354,-500.0,0.00010682,2]
[352336995,1739045449366,-500.0,0.00010682,2]
[352336997,1739045449378,-500.0,0.00010682,2]
[352336999,1739045449390,-531.28,0.00010682,2]
[352337000,1739045449401,-500.0,0.00010682,2]
[352337001,1739045449413,-589.42,0.00010682,2]
[352337002,1739045449425,-500.0,0.00010682,2]
[352337003,1739045449436,-500.0,0.00010682,2]
[352337004,1739045449447,-576.86,0.00010682,2]
[352337005,1739045449459,-515.82,0.00010682,2]
[352337006,1739045449470,-648.95,0.00010682,2]
[352337007,1739045449483,-500.0,0.00010682,2]
[352337008,1739045449495,-500.0,0.00010682,2]
[352337009,1739045449508,-500.0,0.00010682,2]
[352337010,1739045449519,-500.0,0.00010682,2]
[352337011,1739045449532,-500.0,0.00010682,2]
[352337013,1739045449544,-500.0,0.00010682,2]
[352337015,1739045449556,-500.0,0.00010682,2]
[352337017,1739045449568,-770.3,0.00010682,2]
[352337018,1739045449580,-500.0,0.00010682,2]
[352337019,1739045449591,-500.0,0.00010682,2]
[352337020,1739045449604,-622.01,0.00010682,2]
[352337021,1739045449616,-500.0,0.00010682,2]
[352337022,1739045449628,-500.0,0.00010682,2]
[352337023,1739045449640,-500.0,0.00010682,2]
[352337024,1739045449652,-500.0,0.00010682,2]
[352337025,1739045449665,-500.0,0.00010682,2]
[352337026,1739045449677,-500.0,0.00010682,2]
[352337027,1739045449689,-553.5,0.00010682,2]
[352337028,1739045449702,-200.43,0.00010682,2]
[352337029,1739045449715,-500.0,0.00010682,2]
[352337030,1739045449727,-500.0,0.00010682,2]
[352337031,1739045449739,-500.0,0.00010682,2]
[352337032,1739045449751,-500.0,0.00010682,2]
[352337033,1739045449763,-500.0,0.00010682,2]
[352337034,1739045449775,-651.34,0.00010682,2]
[352337035,1739045449787,-510.81,0.00010682,2]
[352337036,1739045449800,-500.0,0.00010682,2]
[352337037,1739045449812,-566.03,0.00010682,2]
[352337038,1739045449823,-553.02,0.00010682,2]
[352337039,1739045449834,-575.57,0.00010682,2]
[352337040,1739045449847,-500.0,0.00010682,2]
[352337041,1739045449858,-500.0,0.00010682,2]
[352337042,1739045449869,-582.22,0.00010682,2]
[352337043,1739045449881,-500.0,0.00010682,2]
[352337044,1739045449892,-500.0,0.00010682,2]
[352337045,1739045449903,-537.32,0.00010682,2]
[352337046,1739045449913,-500.0,0.00010682,2]
[352337047,1739045449924,-500.0,0.00010682,2]
[352337048,1739045449934,-1075.2,0.00010682,2]
[352337049,1739045449945,-500.0,0.00010682,2]
[352337050,1739045449955,-500.0,0.00010682,2]
[352337051,1739045449965,-744.75,0.00010682,2]
[352337052,1739045449977,-500.0,0.00010682,2]
[352337053,1739045449986,-1161.36,0.00010682,2]
[352337054,1739045449996,-976.67,0.00010682,2]
[352337055,1739045450006,-966.6,0.00010682,2]
[352337056,1739045450016,-500.0,0.00010682,2]
[352337057,1739045450026,-2087.17,0.00010682,2]
[352337058,1739045450035,-547.99,0.00010682,2]
[352337059,1739045450045,-639.1,0.00010682,2]
[352337060,1739045450056,-500.0,0.00010682,2]
[352337061,1739045450065,-3399.75,0.00010682,2]
[352337062,1739045450075,-530.88,0.00010682,2]
[352337063,1739045450084,-886.55,0.00010682,2]
[352337064,1739045450094,-1018.61,0.00010682,2]
[352337065,1739045450103,-580.72,0.00010682,2]
[352337066,1739045450113,-669.78,0.00010682,2]
[352337067,1739045450126,-637.52,0.00010682,2]
[352337068,1739045450136,-500.0,0.00010682,2]
[352337069,1739045450146,-1185.58,0.00010682,2]
[352337070,1739045450156,-500.0,0.00010682,2]
[352337071,1739045450167,-500.0,0.00010682,2]
[352337072,1739045450176,-834.2,0.00010682,2]
[352337073,1739045450186,-703.74,0.00010682,2]
[352337074,1739045450199,-500.0,0.00010682,2]
[352337075,1739045450209,-882.86,0.00010682,2]
[352337076,1739045450218,-1000.74,0.00010682,2]
[352337077,1739045450228,-638.94,0.00010682,2]
[352337078,1739045450239,-1000.0,0.00010682,2]
[352337079,1739045450248,-500.0,0.00010682,2]
[352337080,1739045450259,-792.57,0.00010682,2]
[352337081,1739045450269,-517.78,0.00010682,2]
[352337082,1739045450279,-840.06,0.00010682,2]
[352337083,1739045450289,-657.71,0.00010682,2]
[352337084,1739045450298,-912.76,0.00010682,2]
[352337085,1739045450308,-500.0,0.00010682,2]
[352337086,1739045450317,-500.0,0.00010682,2]
[352337087,1739045450327,-500.0,0.00010682,2]
[352337088,1739045450337,-682.37,0.00010682,2]
[352337089,1739045450348,-500.0,0.00010683,2]
[352337090,1739045450358,-500.0,0.00010683,2]
[352337091,1739045450367,-500.0,0.00010683,2]
[352337092,1739045450377,-500.0,0.00010683,2]
[352337093,1739045450386,-500.0,0.00010683,2]
[352337096,1739045450752,-500.0,0.00010683,2]
[352337097,1739045450770,-500.0,0.00010683,2]
[352337098,1739045450785,-500.0,0.00010683,2]
[352337099,1739045450803,-500.0,0.00010683,2]
[352337100,1739045450813,-152.0,0.00010703,3]
[352337101,1739045450823,-500.0,0.00010711,2]
[352337102,1739045450832,-163.67677197,0.0001072,2]
[352337103,1739045450843,-150.0,0.0001073,2]
[352337104,1739045450853,-150.0,0.00010734,2]
[352337105,1739045450863,-150.0,0.00010737,2]
[352337106,1739045450872,-150.0,0.00010743,2]
[352337107,1739045450881,-150.0,0.00010744,2]
[352337108,1739045450890,-150.0,0.00010744,2]
[352337109,1739045450900,-150.0,0.00010747,2]
[352337110,1739045450910,-150.0,0.00010752,2]
[352337111,1739045450919,-500.0,0.00010754,2]
[352337112,1739045450930,-150.0,0.00010759,2]
[352337113,1739045450943,-150.0,0.00010766,2]
[352337114,1739045450953,-150.0,0.00010769,2]
[352337115,1739045450963,-150.0,0.00010769,2]
[352337116,1739045450972,-150.0,0.0001077,2]
[352337117,1739045450982,-1086.32561283,0.0001077,2]
[352337118,1739045450992,-150.0,0.00010773,2]
[352337119,1739045451002,-150.0,0.00010776,2]
[352337120,1739045451010,-150.0,0.00010777,2]
[352337121,1739045451021,-150.0,0.00010778,2]
[352337122,1739045451030,-150.0,0.00010778,2]
[352337123,1739045451040,-150.0,0.00010778,2]
[352337124,1739045451049,-1085.53970131,0.0001078,2]
[352337125,1739045451058,-163.67677194,0.0001078,2]
[352337126,1739045451067,-150.0,0.0001078,2]
[352337127,1739045451076,-150.0,0.00010793,2]
[352337128,1739045451085,-150.0,0.00010794,2]
[352337129,1739045451096,-150.0,0.00010805,2]
[352337130,1739045451106,-150.0,0.00010805,2]
[352337131,1739045451116,-150.0,0.00010805,2]
[352337132,1739045451130,-150.0,0.0001081,2]
[352337133,1739045451139,-150.0,0.0001081,2]
[352337134,1739045451148,-500.0,0.00010818,2]
[352337135,1739045451157,-328.38526439,0.00010818,2]
[352337136,1739045451167,-502.77,0.00010818,2]
[352337137,1739045451176,-500.0,0.00010818,2]
[352337138,1739045451186,-730.59,0.00010818,2]
[352337139,1739045451195,-529.33,0.00010818,2]
[352337140,1739045451205,-748.86,0.00010818,2]
[352337141,1739045451215,-500.0,0.00010818,2]
[352337142,1739045451224,-500.0,0.00010818,2]
[352337143,1739045451233,-500.0,0.00010818,2]
[352337144,1739045451242,-500.0,0.00010818,2]
[352337145,1739045451251,-500.0,0.00010818,2]
[352337146,1739045451261,-500.0,0.00010818,2]
[352337147,1739045451270,-756.52,0.00010818,2]
[352337148,1739045451279,-500.0,0.00010818,2]
[352337149,1739045451289,-841.947186,0.00010818,2]
[352337150,1739045451298,-500.0,0.00010818,2]
[352337151,1739045451308,-500.0,0.00010818,2]
[352337152,1739045451317,-649.17,0.00010818,2]
[352337153,1739045451327,-883.869385,0.00010818,2]
[352337154,1739045451336,-307.69,0.00010818,2]
[352337155,1739045451346,-618.96,0.00010818,2]
[352337156,1739045451355,-500.0,0.00010818,2]
[352337157,1739045451364,-529.9,0.00010818,2]
[352337158,1739045451373,-500.0,0.00010818,2]
[352337159,1739045451382,-675.64,0.00010818,2]
[352337160,1739045451392,-500.0,0.00010818,2]
[352337161,1739045451401,-543.33,0.00010818,2]
[352337162,1739045451410,-500.0,0.00010818,2]
[352337163,1739045451420,-500.0,0.00010818,2]
[352337164,1739045451429,-564.73,0.00010818,2]
[352337165,1739045451439,-559.83,0.00010818,2]
[352337166,1739045451448,-500.0,0.00010818,2]
[352337167,1739045451457,-1079.27,0.00010818,2]
[352337168,1739045451466,-627.44,0.00010818,2]
[352337169,1739045451475,-500.0,0.00010818,2]
[352337170,1739045451484,-1024.9,0.00010818,2]
[352337171,1739045451494,-500.0,0.00010818,2]
[352337172,1739045451503,-500.0,0.00010818,2]
[352337173,1739045451522,-566.38,0.00010818,2]
[352337174,1739045451531,-500.0,0.00010818,2]
[352337175,1739045451540,-800.56,0.00010818,2]
[352337176,1739045451551,-519.12,0.00010818,2]
[352337177,1739045451561,-641.44,0.00010818,2]
[352337178,1739045451570,-500.0,0.00010818,2]
[352337179,1739045451580,-508.41,0.00010818,2]
[352337180,1739045451589,-704.95,0.00010818,2]
[352337181,1739045451600,-713.16,0.00010818,2]
[352337182,1739045451609,-500.0,0.00010818,2]
[352337183,1739045451619,-500.0,0.00010818,2]
[352337184,1739045451628,-803.08,0.00010818,2]
[352337185,1739045451639,-612.81,0.00010818,2]
[352337186,1739045451651,-1279.03,0.00010818,2]
[352337187,1739045451662,-222.67392368,0.00010818,2]
[352337188,1739045451674,-500.0,0.00010818,2]
[352337189,1739045451685,-1063.48,0.00010818,2]
[352337190,1739045451695,-500.0,0.00010818,2]
[352337191,1739045451705,-530.24,0.00010818,2]
[352337192,1739045451716,-603.88,0.00010818,2]
[352337193,1739045451726,-677.48,0.00010818,2]
[352337194,1739045451737,-1278.27,0.00010818,2]
[352337195,1739045451746,-500.0,0.00010818,2]
[352337196,1739045451756,-1000.42,0.00010818,2]
[352337197,1739045451765,-500.0,0.00010818,2]
[352337198,1739045451776,-664.4,0.00010818,2]
[352337199,1739045451787,-500.0,0.00010818,2]
[352337200,1739045451796,-571.81,0.00010818,2]
[352337201,1739045451807,-989.47,0.00010818,2]
[352337202,1739045451817,-1596.25,0.00010818,2]
[352337203,1739045451827,-553.0,0.00010818,2]
[352337204,1739045451836,-1310.5,0.00010818,2]
[352337205,1739045451846,-2871.76,0.00010818,2]
[352337206,1739045451856,-1160.42,0.00010818,2]
[352337207,1739045451866,-917.51,0.00010818,2]
[352337208,1739045451877,-899.03,0.00010818,2]
[352337209,1739045451886,-500.0,0.00010818,2]
[352337210,1739045451897,-773.62,0.00010818,2]
[352337211,1739045451907,-1347.0,0.00010818,2]
[352337212,1739045451916,-743.17,0.00010818,2]
[352337213,1739045451927,-881.83,0.00010818,2]
[352337214,1739045451937,-500.0,0.00010818,2]
[352337215,1739045451946,-1246.42,0.00010818,2]
[352337216,1739045451956,-1046.85,0.00010818,2]
[352337217,1739045451966,-500.0,0.00010818,2]
[352337218,1739045451976,-782.2,0.00010818,2]
[352337219,1739045451986,-1385.47,0.00010818,2]
[352337220,1739045451995,-500.0,0.00010818,2]
[352337221,1739045452006,-1328.22,0.00010818,2]
[352337222,1739045452016,-596.15,0.00010818,2]
[352337223,1739045452026,-1382.25,0.00010818,2]
[352337224,1739045452037,-1293.42,0.00010818,2]
[352337225,1739045452048,-626.97,0.00010818,2]
[352337226,1739045452058,-1264.98,0.00010818,2]
[352337227,1739045452067,-500.0,0.00010818,2]
[352337228,1739045452078,-1255.74,0.00010818,2]
[352337229,1739045452087,-1988.02,0.00010818,2]
[352337230,1739045452097,-667.16,0.00010818,2]
[352337231,1739045452106,-500.0,0.00010818,2]
[352337232,1739045452117,-500.0,0.00010818,2]
[352337233,1739045452132,-993.75,0.00010818,2]
[352337234,1739045452142,-995.03,0.00010818,2]
[352337235,1739045452152,-665.6,0.00010818,2]
[352337236,1739045452164,-625.25,0.00010818,2]
[352337237,1739045452174,-1130.35,0.00010818,2]
[352337238,1739045452184,-757.96,0.00010818,2]
[352337239,1739045452196,-1548.22,0.00010818,2]
[352337240,1739045452209,-1882.42,0.00010818,2]
[352337241,1739045452219,-2130.84,0.00010818,2]
[352337242,1739045452228,-867.7,0.00010818,2]
[352337243,1739045452238,-562.92,0.00010818,2]
[352337244,1739045452250,-893.62,0.00010818,2]
[352337245,1739045452261,-527.94,0.00010818,2]
[352337246,1739045452272,-635.75,0.00010818,2]
[352337247,1739045452283,-500.0,0.00010818,2]
[352337248,1739045452292,-500.0,0.00010818,2]
[352337249,1739045452302,-653.15,0.00010818,2]
[352337250,1739045452312,-695.11,0.00010818,2]
[352337251,1739045452322,-500.0,0.00010818,2]
[352337252,1739045452331,-500.0,0.00010818,2]
[352337253,1739045452341,-627.42,0.00010818,2]
[352337254,1739045452352,-500.0,0.00010818,2]
[352337255,1739045452362,-902.58,0.00010818,2]
[352337256,1739045452371,-1121.08,0.00010818,2]
[352337257,1739045452380,-500.0,0.00010818,2]
[352337258,1739045452390,-500.0,0.00010818,2]
[352337259,1739045452399,-500.0,0.00010818,2]
[352337260,1739045452408,-500.0,0.00010818,2]
[352337261,1739045452419,-621.83,0.00010818,2]
[352337262,1739045452428,-808.74,0.00010818,2]
[352337263,1739045452437,-500.0,0.00010818,2]
[352337264,1739045452447,-500.0,0.00010819,2]
[352337265,1739045452456,-500.0,0.00010819,2]
[352337266,1739045452465,-500.0,0.00010819,2]
[352337267,1739045452475,-500.0,0.00010819,2]
[352337268,1739045452484,-531.28,0.00010819,2]
[352337269,1739045452493,-500.0,0.00010819,2]
[352337270,1739045452503,-589.42,0.00010819,2]
[352337271,1739045452512,-500.0,0.00010819,2]
[352337272,1739045452521,-500.0,0.00010819,2]
[352337273,1739045452531,-576.86,0.00010819,2]
[352337274,1739045452541,-515.82,0.00010819,2]
[352337275,1739045452550,-648.95,0.00010819,2]
[352337276,1739045452559,-500.0,0.00010819,2]
[352337277,1739045452568,-500.0,0.00010819,2]
[352337278,1739045452578,-500.0,0.00010819,2]
[352337279,1739045452587,-500.0,0.00010819,2]
[352337280,1739045452597,-500.0,0.00010819,2]
[352337281,1739045452607,-500.0,0.00010819,2]
[352337282,1739045452616,-500.0,0.00010819,2]
[352337283,1739045452626,-770.3,0.00010819,2]
[352337284,1739045452635,-500.0,0.00010819,2]
[352337285,1739045452645,-270.0290053,0.00010819,2]
[352337286,1739045452655,-622.01,0.00010819,2]
[352337287,1739045452664,-500.0,0.00010819,2]
[352337288,1739045452674,-500.0,0.00010819,2]
[352337289,1739045452684,-500.0,0.00010819,2]
[352337290,1739045452693,-500.0,0.00010819,2]
[352337291,1739045452703,-500.0,0.00010819,2]
[352337292,1739045452712,-500.0,0.00010819,2]
[352337293,1739045452722,-553.5,0.00010819,2]
[352337294,1739045452731,-500.0,0.00010819,2]
[352337295,1739045452741,-500.0,0.00010819,2]
[352337296,1739045452751,-500.0,0.00010819,2]
[352337297,1739045452760,-500.0,0.00010819,2]
[352337298,1739045452770,-500.0,0.00010819,2]
[352337299,1739045452779,-651.34,0.00010819,2]
[352337300,1739045452789,-510.81,0.00010819,2]
[352337301,1739045452798,-500.0,0.00010819,2]
[352337302,1739045452807,-566.03,0.00010819,2]
[352337303,1739045452817,-553.02,0.00010819,2]
[352337304,1739045452827,-575.57,0.00010819,2]
[352337305,1739045452837,-500.0,0.00010819,2]
[352337306,1739045452848,-500.0,0.00010819,2]
[352337307,1739045452857,-500.0,0.00010819,2]
[352337308,1739045452867,-500.0,0.00010819,2]
[352337309,1739045452877,-537.32,0.00010819,2]
[352337310,1739045452886,-500.0,0.00010819,2]
[352337311,1739045452895,-306.92,0.00010819,2]
[352337312,1739045452905,-1075.2,0.00010819,2]
[352337313,1739045452915,-500.0,0.00010819,2]
[352337314,1739045452924,-500.0,0.00010819,2]
[352337315,1739045452934,-744.75,0.00010819,2]
[352337316,1739045452944,-500.0,0.00010819,2]
[352337317,1739045452954,-1161.36,0.00010819,2]
[352337318,1739045452964,-976.67,0.00010819,2]
[352337319,1739045452973,-966.6,0.00010819,2]
[352337320,1739045452983,-500.0,0.00010819,2]
[352337321,1739045452993,-2087.17,0.00010819,2]
[352337322,1739045453004,-547.99,0.00010819,2]
[352337323,1739045453014,-639.1,0.00010819,2]
[352337324,1739045453023,-432.72891881,0.00010819,2]
[352337325,1739045453033,-3399.75,0.00010819,2]
[352337326,1739045453043,-530.88,0.00010819,2]
[352337327,1739045453052,-886.55,0.00010819,2]
[352337328,1739045453063,-1018.61,0.00010819,2]
[352337329,1739045453072,-580.72,0.00010819,2]
[352337330,1739045453082,-669.78,0.00010819,2]
[352337331,1739045453091,-637.52,0.00010819,2]
[352337332,1739045453103,-500.0,0.00010819,2]
[352337333,1739045453112,-1185.58,0.00010819,2]
[352337334,1739045453126,-500.0,0.00010819,2]
[352337335,1739045453137,-500.0,0.00010819,2]
[352337336,1739045453147,-834.2,0.00010819,2]
[352337337,1739045453156,-703.74,0.00010819,2]
[352337338,1739045453167,-500.0,0.00010819,2]
[352337339,1739045453177,-882.86,0.00010819,2]
[352337340,1739045453187,-1000.74,0.00010819,2]
[352337341,1739045453196,-638.94,0.00010819,2]
[352337342,1739045453209,-1000.0,0.00010819,2]
[352337343,1739045453220,-500.0,0.00010819,2]
[352337344,1739045453230,-792.57,0.00010819,2]
[352337345,1739045453241,-517.78,0.00010819,2]
[352337346,1739045453251,-840.06,0.00010819,2]
[352337347,1739045453262,-657.71,0.00010819,2]
[352337348,1739045453271,-912.76,0.00010819,2]
[352337349,1739045453281,-296.3,0.00010819,2]
[352337350,1739045453290,-500.0,0.00010819,2]
[352337351,1739045453300,-500.0,0.00010819,2]
[352337352,1739045453310,-682.37,0.00010819,2]
[352337353,1739045453319,-500.0,0.0001082,2]
[352337354,1739045453330,-500.0,0.0001082,2]
[352337355,1739045453340,-500.0,0.0001082,2]
[352337356,1739045453350,-566.71615937,0.0001082,2]
[352337357,1739045453359,-500.0,0.0001082,2]
[352337358,1739045453369,-150.0,0.0001082,2]
[352337359,1739045453379,-500.0,0.0001082,2]
[352337360,1739045453389,-500.0,0.0001082,2]
[352337361,1739045453400,-500.0,0.0001082,2]
[352337362,1739045453410,-500.0,0.0001082,2]
[352337363,1739045453419,-150.0,0.00010825,2]
[352337364,1739045453429,-638.0,0.00010825,2]
[352337365,1739045453439,-150.0,0.00010825,2]
[352337366,1739045453448,-568.0,0.00010825,2]
[352337367,1739045453458,-150.0,0.00010825,2]
[352337368,1739045453468,-150.0,0.00010826,2]
[352337369,1739045453477,-150.0,0.00010826,2]
[352337370,1739045453486,-150.0,0.00010829,2]
[352337371,1739045453496,-150.0,0.00010834,2]
[352337372,1739045453508,-150.0,0.00010835,2]
[352337373,1739045453518,-150.0,0.00010836,2]
[352337374,1739045453527,-1043.0,0.00010836,2]
[352337375,1739045453537,-163.67677194,0.0001084,2]
[352337376,1739045453547,-150.0,0.00010842,2]
[352337377,1739045453557,-856.859,0.0001085,2]
[352337378,1739045453566,-150.0,0.00010851,2]
[352337379,1739045453576,-150.0,0.00010854,2]
[352337380,1739045453585,-150.0,0.00010854,2]
[352337381,1739045453595,-150.0,0.00010854,2]
[352337382,1739045453605,-2299.80297194,0.00010855,2]
[352337383,1739045453615,-154.16148571,0.00010856,2]
[352337384,1739045453624,-150.0,0.00010857,2]
[352337385,1739045453634,-314.87726294,0.00010857,2]
[352337386,1739045453644,-150.0,0.0001086,2]
[352337387,1739045453653,-150.0,0.00010863,2]
[352337388,1739045453664,-150.0,0.00010866,2]
[352337389,1739045453673,-150.0,0.00010866,2]
[352337390,1739045453683,-150.0,0.00010867,2]
[352337391,1739045453695,-150.0,0.00010873,2]
[352337392,1739045453707,-150.0,0.00010877,2]
[352337393,1739045453717,-150.0,0.00010895,2]
[352337394,1739045453728,-150.0,0.00010897,2]
[352337395,1739045453738,-150.0,0.00010898,2]
[352337396,1739045453748,-150.0,0.00010899,2]
[352337397,1739045453757,-613.55076177,0.000109,2]
[352337398,1739045453769,-163.67677194,0.000109,2]
[352337399,1739045453780,-150.0,0.00010906,2]
[352337400,1739045453789,-150.0,0.00010906,2]
[352337401,1739045453799,-150.0,0.00010911,2]
[352337402,1739045453808,-150.0,0.00010911,2]
[352337403,1739045453818,-150.0,0.00010916,2]
[352337404,1739045453827,-150.0,0.00010919,2]
[352337405,1739045453838,-150.0,0.0001092,2]
[352337406,1739045453848,-150.0,0.00010922,2]
[352337407,1739045453858,-150.0,0.00010922,2]
[352337408,1739045453868,-150.0,0.00010926,2]
[352337409,1739045453878,-150.0,0.00010926,2]
[352337410,1739045453887,-150.0,0.00010926,2]
[352337411,1739045453896,-150.0,0.0001093,2]
[352337412,1739045453906,-150.0,0.00010936,2]
[352337413,1739045453915,-150.0,0.00010936,2]
[352337414,1739045453924,-150.0,0.00010943,2]
[352337415,1739045453934,-150.0,0.00010948,2]
[352337416,1739045453943,-500.0,0.00010955,2]
[352337417,1739045453952,-502.77,0.00010955,2]
[352337418,1739045453962,-500.0,0.00010955,2]
[352337419,1739045453972,-730.59,0.00010955,2]
[352337420,1739045453981,-529.33,0.00010955,2]
[352337421,1739045453991,-748.86,0.00010955,2]
[352337422,1739045454000,-500.0,0.00010955,2]
[352337423,1739045454010,-500.0,0.00010955,2]
[352337424,1739045454019,-500.0,0.00010955,2]
[352337425,1739045454030,-500.0,0.00010955,2]
[352337426,1739045454039,-500.0,0.00010955,2]